[Event "Late-Titled-Tuesday-Blitz-April-16-2024"]
[Site "Chess.com"]
[Date "2024.04.16"]
[Round "5"]
[White "eljanov"]
[Black "LiemLe"]
[Result "0-1"]
[WhiteElo "2900"]
[BlackElo "3051"]
[TimeControl "180+1"]
[EndTime "14:53:18 PDT"]
[Termination "LiemLe won on time"]

1. d4 {[%clk 0:03:00.9]} 1... Nf6 {[%clk 0:03:00.6]} 2. c4 {[%clk 0:03:00.4]}
2... g6 {[%clk 0:03:01.2]} 3. Nc3 {[%clk 0:02:58.7]} 3... d5 {[%clk 0:03:01.5]}
4. cxd5 {[%clk 0:02:56.4]} 4... Nxd5 {[%clk 0:03:02.4]} 5. e4 {[%clk 0:02:56.4]}
5... Nxc3 {[%clk 0:03:02.8]} 6. bxc3 {[%clk 0:02:56.2]} 6... Bg7 {[%clk
0:03:03.7]} 7. Bc4 {[%clk 0:02:56.6]} 7... c5 {[%clk 0:03:03.8]} 8. Ne2 {[%clk
0:02:56.6]} 8... Nc6 {[%clk 0:03:04.1]} 9. Be3 {[%clk 0:02:57]} 9... O-O {[%clk
0:03:03.3]} 10. O-O {[%clk 0:02:57]} 10... Bd7 {[%clk 0:02:56.6]} 11. Rc1 {[%clk
0:02:50.1]} 11... Rc8 {[%clk 0:02:53.8]} 12. Qd2 {[%clk 0:02:39.7]} 12... cxd4
{[%clk 0:02:32.1]} 13. cxd4 {[%clk 0:02:38.1]} 13... Qa5 {[%clk 0:02:33]} 14.
Qb2 {[%clk 0:02:26.4]} 14... Qb4 {[%clk 0:02:32.1]} 15. Qxb4 {[%clk 0:02:21.2]}
15... Nxb4 {[%clk 0:02:33]} 16. a3 {[%clk 0:02:10.7]} 16... Nc6 {[%clk 0:02:31]}
17. Ba2 {[%clk 0:01:57]} 17... Na5 {[%clk 0:02:26.3]} 18. Rxc8 {[%clk
0:01:43.6]} 18... Rxc8 {[%clk 0:02:27.2]} 19. Rc1 {[%clk 0:01:43.8]} 19... Rxc1+
{[%clk 0:02:23.2]} 20. Nxc1 {[%clk 0:01:39.5]} 20... e6 {[%clk 0:02:11.2]} 21.
d5 {[%clk 0:01:34.3]} 21... exd5 {[%clk 0:02:09.8]} 22. Bxd5 {[%clk 0:01:32.9]}
22... b6 {[%clk 0:02:06.9]} 23. Nb3 {[%clk 0:01:28.6]} 23... Nc6 {[%clk
0:01:44.6]} 24. f4 {[%clk 0:01:20.2]} 24... Bb2 {[%clk 0:01:40.6]} 25. Bc1
{[%clk 0:01:16]} 25... Bxc1 {[%clk 0:01:35.3]} 26. Nxc1 {[%clk 0:01:15.7]} 26...
Kf8 {[%clk 0:01:36]} 27. Kf2 {[%clk 0:01:12.5]} 27... Nd4 {[%clk 0:01:34.2]} 28.
Bb3 {[%clk 0:00:52.9]} 28... Ke7 {[%clk 0:01:29.8]} 29. Ke3 {[%clk 0:00:50.1]}
29... Nb5 {[%clk 0:01:29.5]} 30. a4 {[%clk 0:00:47.5]} 30... Nc3 {[%clk
0:01:29.7]} 31. a5 {[%clk 0:00:44.4]} 31... bxa5 {[%clk 0:01:30.6]} 32. Kd4
{[%clk 0:00:41.8]} 32... Nb5+ {[%clk 0:01:28.1]} 33. Kc5 {[%clk 0:00:42]} 33...
Nd6 {[%clk 0:01:26.4]} 34. Bd5 {[%clk 0:00:42.6]} 34... a4 {[%clk 0:01:11.4]}
35. Na2 {[%clk 0:00:42.4]} 35... Be6 {[%clk 0:01:06.1]} 36. Nc3 {[%clk
0:00:40.3]} 36... Bxd5 {[%clk 0:01:06.1]} 37. exd5 {[%clk 0:00:32.9]} 37... a3
{[%clk 0:01:03.9]} 38. Kb4 {[%clk 0:00:33.3]} 38... a6 {[%clk 0:00:56.7]} 39. g4
{[%clk 0:00:19.7]} 39... Nb5 {[%clk 0:00:56.6]} 40. Na2 {[%clk 0:00:20]} 40...
Kd6 {[%clk 0:00:56.8]} 41. Kc4 {[%clk 0:00:20.4]} 41... f5 {[%clk 0:00:50.6]}
42. gxf5 {[%clk 0:00:16.9]} 42... gxf5 {[%clk 0:00:51.5]} 43. Nb4 {[%clk
0:00:17.3]} 43... Nc7 {[%clk 0:00:50.8]} 44. Kb3 {[%clk 0:00:13.5]} 44... a5
{[%clk 0:00:37.5]} 45. Nc6 {[%clk 0:00:13.7]} 45... Kxd5 {[%clk 0:00:34]} 46.
Nxa5 {[%clk 0:00:10]} 46... Nb5 {[%clk 0:00:34.4]} 47. Nb7 {[%clk 0:00:01.6]}
47... Ke4 {[%clk 0:00:33.3]} 0-1

[Event "Late-Titled-Tuesday-Blitz-April-16-2024"]
[Site "Chess.com"]
[Date "2024.04.16"]
[Round "5"]
[White "DonkyDonkyDonkey"]
[Black "mishanick"]
[Result "0-1"]
[WhiteElo "2913"]
[BlackElo "3055"]
[TimeControl "180+1"]
[EndTime "14:53:22 PDT"]
[Termination "mishanick won by resignation"]

1. e4 {[%clk 0:02:54.9]} 1... c5 {[%clk 0:03:00.6]} 2. Nf3 {[%clk 0:02:55.4]}
2... d6 {[%clk 0:03:01.2]} 3. Bb5+ {[%clk 0:02:55.8]} 3... Bd7 {[%clk 0:03:00]}
4. c4 {[%clk 0:02:55.9]} 4... Nc6 {[%clk 0:02:58.1]} 5. O-O {[%clk 0:02:55.5]}
5... e5 {[%clk 0:02:58.5]} 6. Nc3 {[%clk 0:02:53.6]} 6... Nge7 {[%clk
0:02:59.1]} 7. d3 {[%clk 0:02:53.4]} 7... Ng6 {[%clk 0:02:59.6]} 8. Nd5 {[%clk
0:02:50.9]} 8... Be7 {[%clk 0:03:00]} 9. h3 {[%clk 0:02:51.1]} 9... O-O {[%clk
0:02:59.9]} 10. a3 {[%clk 0:02:47.7]} 10... f5 {[%clk 0:03:00.1]} 11. exf5
{[%clk 0:02:47.7]} 11... Bxf5 {[%clk 0:02:59.3]} 12. b4 {[%clk 0:02:47.5]} 12...
Nd4 {[%clk 0:02:56]} 13. Nxd4 {[%clk 0:02:44.4]} 13... cxd4 {[%clk 0:02:54]} 14.
f4 {[%clk 0:02:40.4]} 14... Kh8 {[%clk 0:02:47.9]} 15. Nxe7 {[%clk 0:02:13.3]}
15... Qxe7 {[%clk 0:02:47.4]} 16. g4 {[%clk 0:02:13.5]} 16... Bc8 {[%clk
0:02:06.5]} 17. f5 {[%clk 0:02:12.7]} 17... Nh4 {[%clk 0:02:05.3]} 18. Qe1
{[%clk 0:02:07.2]} 18... a6 {[%clk 0:01:59.8]} 19. Ba4 {[%clk 0:02:07.1]} 19...
b5 {[%clk 0:02:00.2]} 20. Bb3 {[%clk 0:02:05]} 20... Bb7 {[%clk 0:01:58.5]} 21.
Qg3 {[%clk 0:01:59.9]} 21... Rac8 {[%clk 0:01:42.9]} 22. Bd2 {[%clk 0:01:46.4]}
22... Ba8 {[%clk 0:01:40.9]} 23. c5 {[%clk 0:01:25.8]} 23... dxc5 {[%clk
0:01:00.4]} 24. bxc5 {[%clk 0:01:26.7]} 24... e4 {[%clk 0:00:47.7]} 25. c6
{[%clk 0:00:59.2]} 25... Nf3+ {[%clk 0:00:27.5]} 26. Rxf3 {[%clk 0:00:59.1]}
26... exf3 {[%clk 0:00:28.4]} 27. Be6 {[%clk 0:00:59.6]} 27... Rxc6 {[%clk
0:00:27]} 28. Bb4 {[%clk 0:00:59.6]} 28... Qg5 {[%clk 0:00:20.6]} 29. Bxf8
{[%clk 0:00:41.4]} 29... Rc2 {[%clk 0:00:10.5]} 30. Bxg7+ {[%clk 0:00:16]} 30...
Kxg7 {[%clk 0:00:09.7]} 31. Qe5+ {[%clk 0:00:16.7]} 31... Kh6 {[%clk 0:00:07.5]}
32. Bf7 {[%clk 0:00:16]} 32... Qe3+ {[%clk 0:00:07]} 33. Qxe3+ {[%clk
0:00:15.8]} 33... dxe3 {[%clk 0:00:07.9]} 34. h4 {[%clk 0:00:15.6]} 34... Rg2+
{[%clk 0:00:08.4]} 35. Kf1 {[%clk 0:00:15.8]} 35... Rxg4 {[%clk 0:00:08.2]} 36.
Re1 {[%clk 0:00:14.1]} 36... e2+ {[%clk 0:00:06.3]} 37. Kf2 {[%clk 0:00:14.7]}
37... Rg2+ {[%clk 0:00:06.9]} 38. Ke3 {[%clk 0:00:15.4]} 38... f2 {[%clk
0:00:07.5]} 39. Kxe2 {[%clk 0:00:14.6]} 39... fxe1=Q+ {[%clk 0:00:06.7]} 40.
Kxe1 {[%clk 0:00:15.5]} 40... Kg7 {[%clk 0:00:07]} 41. Be6 {[%clk 0:00:15.7]}
41... Kf6 {[%clk 0:00:07.3]} 42. Bc8 {[%clk 0:00:15.7]} 42... Rh2 {[%clk
0:00:07.6]} 43. Bxa6 {[%clk 0:00:16]} 43... Bc6 {[%clk 0:00:08.2]} 44. Bxb5
{[%clk 0:00:16.1]} 44... Bxb5 {[%clk 0:00:08.1]} 0-1

[Event "Late-Titled-Tuesday-Blitz-April-16-2024"]
[Site "Chess.com"]
[Date "2024.04.16"]
[Round "5"]
[White "Statham_01"]
[Black "Lukianoo"]
[Result "0-1"]
[WhiteElo "2623"]
[BlackElo "2832"]
[TimeControl "180+1"]
[EndTime "14:53:26 PDT"]
[Termination "Lukianoo won by resignation"]

1. e4 {[%clk 0:02:59.8]} 1... c6 {[%clk 0:02:59.7]} 2. d4 {[%clk 0:02:59.7]}
2... d5 {[%clk 0:03:00.6]} 3. f3 {[%clk 0:03:00.4]} 3... e6 {[%clk 0:03:00]} 4.
Nc3 {[%clk 0:03:00.5]} 4... Bb4 {[%clk 0:03:00.1]} 5. a3 {[%clk 0:03:01.1]} 5...
Ba5 {[%clk 0:02:58.8]} 6. Bd3 {[%clk 0:03:00.5]} 6... Ne7 {[%clk 0:02:54.3]} 7.
Ne2 {[%clk 0:02:59.7]} 7... Nd7 {[%clk 0:02:53.7]} 8. O-O {[%clk 0:02:59.1]}
8... Bc7 {[%clk 0:02:51.9]} 9. e5 {[%clk 0:02:48.1]} 9... c5 {[%clk 0:02:51.3]}
10. Nb5 {[%clk 0:02:44.7]} 10... c4 {[%clk 0:02:48.2]} 11. Bg5 {[%clk
0:02:24.2]} 11... f6 {[%clk 0:02:07]} 12. Nf4 {[%clk 0:02:16.5]} 12... Kf7
{[%clk 0:01:49.5]} 13. exf6 {[%clk 0:01:33.1]} 13... gxf6 {[%clk 0:01:50.4]} 14.
Qe1 {[%clk 0:01:01.8]} 14... Nf8 {[%clk 0:01:34.5]} 15. Qh4 {[%clk 0:00:38.1]}
15... fxg5 {[%clk 0:01:26.4]} 16. Qh5+ {[%clk 0:00:35]} 16... Kg7 {[%clk
0:01:04.2]} 17. Nxc7 {[%clk 0:00:29]} 17... Qxc7 {[%clk 0:00:58.9]} 18. Qxg5+
{[%clk 0:00:26.7]} 18... Neg6 {[%clk 0:00:58.6]} 19. Nh5+ {[%clk 0:00:25.9]}
19... Kg8 {[%clk 0:00:59]} 20. f4 {[%clk 0:00:19.2]} 20... cxd3 {[%clk
0:00:49.2]} 21. f5 {[%clk 0:00:15.5]} 21... exf5 {[%clk 0:00:48.2]} 22. Rae1
{[%clk 0:00:14.1]} 22... h6 {[%clk 0:00:44.3]} 23. Qf6 {[%clk 0:00:05.5]} 23...
Qf7 {[%clk 0:00:35.8]} 24. Qd8 {[%clk 0:00:04.7]} 24... d2 {[%clk 0:00:31.2]}
25. Nf6+ {[%clk 0:00:04.9]} 25... Kg7 {[%clk 0:00:28.1]} 26. Nh5+ {[%clk
0:00:03.5]} 26... Kg8 {[%clk 0:00:25.5]} 27. Nf6+ {[%clk 0:00:04.4]} 27... Qxf6
{[%clk 0:00:24.8]} 28. Qxf6 {[%clk 0:00:05.3]} 28... dxe1=Q {[%clk 0:00:24.8]}
29. Rxe1 {[%clk 0:00:06.2]} 29... Bd7 {[%clk 0:00:22.2]} 30. Re7 {[%clk
0:00:06.4]} 30... Nxe7 {[%clk 0:00:20.6]} 31. Qxe7 {[%clk 0:00:05.7]} 31... Re8
{[%clk 0:00:19.4]} 32. Qd6 {[%clk 0:00:05.2]} 32... Bc6 {[%clk 0:00:16.4]} 33.
Qf6 {[%clk 0:00:05.4]} 33... Rh7 {[%clk 0:00:15.7]} 34. h4 {[%clk 0:00:04.8]}
34... Rf7 {[%clk 0:00:15.5]} 35. Qxh6 {[%clk 0:00:05.2]} 35... Re6 {[%clk
0:00:15]} 36. Qf4 {[%clk 0:00:05.1]} 36... Re4 {[%clk 0:00:14.9]} 37. Qf3 {[%clk
0:00:03.9]} 37... Rg4 {[%clk 0:00:14.5]} 38. b4 {[%clk 0:00:04.2]} 38... Rfg7
{[%clk 0:00:14.3]} 39. Qxf5 {[%clk 0:00:04.7]} 39... Rxg2+ {[%clk 0:00:14.3]}
40. Kf1 {[%clk 0:00:05.2]} 40... Rf7 {[%clk 0:00:14]} 0-1

[Event "Late-Titled-Tuesday-Blitz-April-16-2024"]
[Site "Chess.com"]
[Date "2024.04.16"]
[Round "5"]
[White "Denmark2015"]
[Black "ContrVersia"]
[Result "1-0"]
[WhiteElo "2600"]
[BlackElo "2850"]
[TimeControl "180+1"]
[EndTime "14:53:26 PDT"]
[Termination "Denmark2015 won on time"]

1. d4 {[%clk 0:03:00.9]} 1... f5 {[%clk 0:02:58.9]} 2. Nf3 {[%clk 0:02:53.8]}
2... Nf6 {[%clk 0:02:58.9]} 3. g3 {[%clk 0:02:53.3]} 3... g6 {[%clk 0:02:58.8]}
4. Bg2 {[%clk 0:02:51]} 4... Bg7 {[%clk 0:02:59.4]} 5. O-O {[%clk 0:02:50.2]}
5... O-O {[%clk 0:03:00]} 6. Re1 {[%clk 0:02:47.2]} 6... d6 {[%clk 0:02:57.5]}
7. Nbd2 {[%clk 0:02:46.8]} 7... Nc6 {[%clk 0:02:51.8]} 8. e4 {[%clk 0:02:39.7]}
8... fxe4 {[%clk 0:02:51.3]} 9. Nxe4 {[%clk 0:02:39.8]} 9... Nxe4 {[%clk
0:02:51.6]} 10. Rxe4 {[%clk 0:02:39.3]} 10... e5 {[%clk 0:02:51.4]} 11. dxe5
{[%clk 0:02:26.2]} 11... dxe5 {[%clk 0:02:51.5]} 12. Qxd8 {[%clk 0:02:08.6]}
12... Rxd8 {[%clk 0:02:52.4]} 13. Bg5 {[%clk 0:02:07.4]} 13... Rd6 {[%clk
0:02:52.6]} 14. c3 {[%clk 0:02:05]} 14... h6 {[%clk 0:02:50.1]} 15. Bd2 {[%clk
0:01:36.2]} 15... Bf5 {[%clk 0:02:49.5]} 16. Re2 {[%clk 0:01:17.5]} 16... Rad8
{[%clk 0:02:49.1]} 17. Be3 {[%clk 0:01:05.5]} 17... e4 {[%clk 0:02:18.3]} 18.
Nh4 {[%clk 0:00:36]} 18... Bg4 {[%clk 0:02:18]} 19. f3 {[%clk 0:00:34.6]} 19...
exf3 {[%clk 0:02:16.7]} 20. Bxf3 {[%clk 0:00:34.7]} 20... Bxf3 {[%clk
0:02:06.8]} 21. Nxf3 {[%clk 0:00:35.6]} 21... Rd1+ {[%clk 0:01:56.8]} 22. Re1
{[%clk 0:00:35]} 22... Rxa1 {[%clk 0:01:56.3]} 23. Rxa1 {[%clk 0:00:34.3]} 23...
Kf7 {[%clk 0:01:56.8]} 24. Kf2 {[%clk 0:00:33.1]} 24... a6 {[%clk 0:01:41]} 25.
Ke2 {[%clk 0:00:33.1]} 25... Ke6 {[%clk 0:01:39.2]} 26. Rd1 {[%clk 0:00:32.7]}
26... Rxd1 {[%clk 0:01:38.9]} 27. Kxd1 {[%clk 0:00:33.6]} 27... Kf5 {[%clk
0:01:33.3]} 28. Ke2 {[%clk 0:00:33.4]} 28... h5 {[%clk 0:01:23.4]} 29. Bf4
{[%clk 0:00:28.1]} 29... Be5 {[%clk 0:01:10.6]} 30. Nxe5 {[%clk 0:00:27.3]}
30... Nxe5 {[%clk 0:01:11.5]} 31. Bxe5 {[%clk 0:00:23]} 31... Kxe5 {[%clk
0:01:12.4]} 32. Ke3 {[%clk 0:00:22.5]} 32... g5 {[%clk 0:00:54.8]} 33. h3 {[%clk
0:00:22.4]} 33... c5 {[%clk 0:00:31.7]} 34. c4 {[%clk 0:00:20.6]} 34... b5
{[%clk 0:00:27.2]} 35. Kd3 {[%clk 0:00:08.8]} 35... h4 {[%clk 0:00:17.6]} 36.
gxh4 {[%clk 0:00:04.8]} 36... gxh4 {[%clk 0:00:18.5]} 37. a3 {[%clk 0:00:03.9]}
37... Kf4 {[%clk 0:00:06]} 38. cxb5 {[%clk 0:00:02.7]} 38... axb5 {[%clk
0:00:06.9]} 39. b3 {[%clk 0:00:03.2]} 39... Kg3 {[%clk 0:00:07]} 40. a4 {[%clk
0:00:03.7]} 40... c4+ {[%clk 0:00:02.7]} 41. Kc3 {[%clk 0:00:04]} 1-0

[Event "Late-Titled-Tuesday-Blitz-April-16-2024"]
[Site "Chess.com"]
[Date "2024.04.16"]
[Round "5"]
[White "DonJuanEGenaro"]
[Black "Kimkibo"]
[Result "0-1"]
[WhiteElo "1993"]
[BlackElo "2382"]
[TimeControl "180+1"]
[EndTime "14:53:29 PDT"]
[Termination "Kimkibo won on time"]

1. Nf3 {[%clk 0:02:58.2]} 1... Nf6 {[%clk 0:02:59.7]} 2. g3 {[%clk 0:02:58.1]}
2... d5 {[%clk 0:02:59.4]} 3. Bg2 {[%clk 0:02:58.2]} 3... Bf5 {[%clk 0:02:59.9]}
4. O-O {[%clk 0:02:57.7]} 4... e6 {[%clk 0:02:57.2]} 5. c4 {[%clk 0:02:57.5]}
5... c6 {[%clk 0:02:55.8]} 6. Qb3 {[%clk 0:02:55.2]} 6... Qc8 {[%clk 0:02:54.6]}
7. d3 {[%clk 0:02:54.6]} 7... Nbd7 {[%clk 0:02:53.1]} 8. Be3 {[%clk 0:02:52]}
8... Ng4 {[%clk 0:02:45.4]} 9. Bd4 {[%clk 0:02:48.5]} 9... e5 {[%clk 0:02:42.9]}
10. Bc3 {[%clk 0:02:24.4]} 10... d4 {[%clk 0:02:42.4]} 11. Bd2 {[%clk
0:02:23.2]} 11... h5 {[%clk 0:02:37.6]} 12. h3 {[%clk 0:02:21.1]} 12... Ngf6
{[%clk 0:02:33]} 13. Bg5 {[%clk 0:02:02.4]} 13... Bd6 {[%clk 0:02:19.8]} 14. Nh4
{[%clk 0:01:40.2]} 14... Nc5 {[%clk 0:02:14.5]} 15. Qc2 {[%clk 0:01:39.1]} 15...
Bxh3 {[%clk 0:02:12.9]} 16. Bxf6 {[%clk 0:01:29.3]} 16... gxf6 {[%clk
0:02:10.3]} 17. b4 {[%clk 0:01:28.5]} 17... Bxg2 {[%clk 0:02:05.1]} 18. Kxg2
{[%clk 0:01:24.6]} 18... Ne6 {[%clk 0:02:02.2]} 19. Nd2 {[%clk 0:01:23.4]} 19...
Bxb4 {[%clk 0:01:54.5]} 20. Ne4 {[%clk 0:01:23.1]} 20... Be7 {[%clk 0:01:54]}
21. f4 {[%clk 0:01:08.1]} 21... Nxf4+ {[%clk 0:01:49.4]} 22. Rxf4 {[%clk
0:00:43.8]} 22... exf4 {[%clk 0:01:46.3]} 23. Rf1 {[%clk 0:00:44.3]} 23... f5
{[%clk 0:01:40.1]} 24. Rxf4 {[%clk 0:00:41.5]} 24... fxe4 {[%clk 0:01:38.9]} 25.
Nf5 {[%clk 0:00:39.8]} 25... e3 {[%clk 0:01:31.6]} 26. Nxd4 {[%clk 0:00:37.4]}
26... h4 {[%clk 0:01:28.8]} 27. gxh4 {[%clk 0:00:25.4]} 27... Rg8+ {[%clk
0:01:27.2]} 28. Kf3 {[%clk 0:00:12.7]} 28... Qh3+ {[%clk 0:01:23.5]} 29. Ke4
{[%clk 0:00:12.4]} 29... O-O-O {[%clk 0:01:18.6]} 30. Nf5 {[%clk 0:00:11.9]}
30... Bc5 {[%clk 0:01:13.5]} 31. d4 {[%clk 0:00:11.7]} 31... Qh1+ {[%clk
0:00:44.7]} 32. Kxe3 {[%clk 0:00:06.9]} 32... Rge8+ {[%clk 0:00:44.4]} 33. Kd3
{[%clk 0:00:06.6]} 33... Qh2 {[%clk 0:00:32.9]} 34. e3 {[%clk 0:00:06.2]} 34...
Qxc2+ {[%clk 0:00:29.5]} 35. Kxc2 {[%clk 0:00:06.1]} 35... Bd6 {[%clk
0:00:30.4]} 36. Rf3 {[%clk 0:00:04.9]} 36... Bc7 {[%clk 0:00:30.6]} 37. Kd3
{[%clk 0:00:05]} 37... Re6 {[%clk 0:00:29.8]} 38. e4 {[%clk 0:00:04.9]} 38...
Rg6 {[%clk 0:00:25.8]} 39. e5 {[%clk 0:00:04.4]} 39... Rg2 {[%clk 0:00:24.6]}
40. Ne7+ {[%clk 0:00:04.1]} 40... Kb8 {[%clk 0:00:24.4]} 41. Rxf7 {[%clk
0:00:04]} 41... Bxe5 {[%clk 0:00:24.2]} 42. Ke4 {[%clk 0:00:01]} 42... Bxd4
{[%clk 0:00:24]} 0-1

[Event "Late-Titled-Tuesday-Blitz-April-16-2024"]
[Site "Chess.com"]
[Date "2024.04.16"]
[Round "5"]
[White "djano"]
[Black "XDPS"]
[Result "0-1"]
[WhiteElo "2620"]
[BlackElo "2824"]
[TimeControl "180+1"]
[EndTime "14:53:30 PDT"]
[Termination "XDPS won by resignation"]

1. e4 {[%clk 0:03:00.9]} 1... c5 {[%clk 0:02:57.4]} 2. Nc3 {[%clk 0:03:00.3]}
2... a6 {[%clk 0:02:56]} 3. g3 {[%clk 0:02:57.5]} 3... Nc6 {[%clk 0:02:53.4]} 4.
f4 {[%clk 0:02:54.7]} 4... g6 {[%clk 0:02:53.6]} 5. Bg2 {[%clk 0:02:52.9]} 5...
Bg7 {[%clk 0:02:52.4]} 6. Nf3 {[%clk 0:02:53]} 6... d6 {[%clk 0:02:52.6]} 7. O-O
{[%clk 0:02:51.9]} 7... Rb8 {[%clk 0:02:53.1]} 8. a4 {[%clk 0:02:42.7]} 8... b5
{[%clk 0:02:52.4]} 9. axb5 {[%clk 0:02:43.6]} 9... axb5 {[%clk 0:02:53.3]} 10.
h3 {[%clk 0:02:40]} 10... b4 {[%clk 0:02:53]} 11. Ne2 {[%clk 0:02:39.6]} 11...
Nf6 {[%clk 0:02:52.9]} 12. d3 {[%clk 0:02:39.6]} 12... O-O {[%clk 0:02:53.1]}
13. g4 {[%clk 0:02:38.8]} 13... Ne8 {[%clk 0:02:45.8]} 14. f5 {[%clk 0:02:31.9]}
14... Nc7 {[%clk 0:02:41.3]} 15. Ng3 {[%clk 0:02:24.5]} 15... d5 {[%clk
0:02:35.1]} 16. Qe1 {[%clk 0:02:14.1]} 16... dxe4 {[%clk 0:02:26.4]} 17. dxe4
{[%clk 0:02:13.8]} 17... Qd6 {[%clk 0:02:17.2]} 18. Kh1 {[%clk 0:01:52]} 18...
Ba6 {[%clk 0:01:52.7]} 19. Rg1 {[%clk 0:01:39.5]} 19... Bb5 {[%clk 0:01:43.8]}
20. Be3 {[%clk 0:01:13]} 20... Bxb2 {[%clk 0:01:35.2]} 21. Rd1 {[%clk
0:01:13.2]} 21... Nd4 {[%clk 0:01:35.3]} 22. e5 {[%clk 0:01:08]} 22... Qb6
{[%clk 0:01:20.7]} 23. Nxd4 {[%clk 0:01:05.3]} 23... cxd4 {[%clk 0:01:16.6]} 24.
Bh6 {[%clk 0:01:04.6]} 24... Bc3 {[%clk 0:01:13.9]} 25. Qe4 {[%clk 0:01:00.7]}
25... Rfd8 {[%clk 0:01:11.8]} 26. e6 {[%clk 0:01:00.2]} 26... Bc4 {[%clk
0:01:05.1]} 27. Qf4 {[%clk 0:00:41.4]} 27... Qd6 {[%clk 0:00:54.2]} 28. Qf2
{[%clk 0:00:31.4]} 28... Nd5 {[%clk 0:00:53.3]} 29. exf7+ {[%clk 0:00:30.5]}
29... Kh8 {[%clk 0:00:28.6]} 30. Ne4 {[%clk 0:00:29.3]} 30... Qb6 {[%clk
0:00:20.6]} 31. f8=Q+ {[%clk 0:00:26.4]} 31... Rxf8 {[%clk 0:00:20.7]} 32. Bxf8
{[%clk 0:00:27.3]} 32... Rxf8 {[%clk 0:00:21.2]} 33. Ng5 {[%clk 0:00:25.6]}
33... Ne3 {[%clk 0:00:21.4]} 34. Qh4 {[%clk 0:00:25.2]} 34... h5 {[%clk
0:00:21.2]} 35. gxh5 {[%clk 0:00:24]} 35... Nxf5 {[%clk 0:00:20.9]} 36. Qf4
{[%clk 0:00:21.8]} 36... Qf6 {[%clk 0:00:18.6]} 37. hxg6 {[%clk 0:00:17.5]}
37... e5 {[%clk 0:00:19.2]} 38. Qg4 {[%clk 0:00:16.5]} 38... Be2 {[%clk
0:00:19.6]} 39. g7+ {[%clk 0:00:11.5]} 39... Qxg7 {[%clk 0:00:20]} 40. Ne6
{[%clk 0:00:03.5]} 40... Bxg4 {[%clk 0:00:19.4]} 41. Nxg7 {[%clk 0:00:03.9]}
41... Bxd1 {[%clk 0:00:18.4]} 42. Nxf5 {[%clk 0:00:04.1]} 42... Bxc2 {[%clk
0:00:17.8]} 43. Nh6 {[%clk 0:00:02.9]} 43... b3 {[%clk 0:00:17.8]} 44. Bd5
{[%clk 0:00:03.1]} 44... b2 {[%clk 0:00:18.1]} 45. Nf7+ {[%clk 0:00:02.6]} 45...
Rxf7 {[%clk 0:00:18.6]} 46. Bxf7 {[%clk 0:00:02]} 46... b1=Q {[%clk 0:00:18.9]}
0-1

[Event "Late-Titled-Tuesday-Blitz-April-16-2024"]
[Site "Chess.com"]
[Date "2024.04.16"]
[Round "5"]
[White "Gabrielian_Artur"]
[Black "artin10862"]
[Result "0-1"]
[WhiteElo "2791"]
[BlackElo "2944"]
[TimeControl "180+1"]
[EndTime "14:53:36 PDT"]
[Termination "artin10862 won on time"]

1. e4 {[%clk 0:03:00.9]} 1... c5 {[%clk 0:02:57.9]} 2. Nf3 {[%clk 0:03:00.4]}
2... e6 {[%clk 0:02:57.5]} 3. Nc3 {[%clk 0:02:54.1]} 3... a6 {[%clk 0:02:47.4]}
4. d4 {[%clk 0:02:52.1]} 4... cxd4 {[%clk 0:02:47.3]} 5. Nxd4 {[%clk 0:02:52.4]}
5... b5 {[%clk 0:02:47.9]} 6. Bd3 {[%clk 0:02:51.9]} 6... Bb7 {[%clk 0:02:46.6]}
7. O-O {[%clk 0:02:51.4]} 7... Nc6 {[%clk 0:02:46.7]} 8. Nxc6 {[%clk 0:02:51.5]}
8... Bxc6 {[%clk 0:02:47.6]} 9. Re1 {[%clk 0:02:51.7]} 9... Qb8 {[%clk
0:02:47.4]} 10. a4 {[%clk 0:02:44.1]} 10... bxa4 {[%clk 0:02:46]} 11. Nxa4
{[%clk 0:02:43.1]} 11... Bd6 {[%clk 0:02:45]} 12. h3 {[%clk 0:02:43.1]} 12...
Ne7 {[%clk 0:02:38.2]} 13. Qe2 {[%clk 0:02:32.7]} 13... Ng6 {[%clk 0:02:36.7]}
14. Nc3 {[%clk 0:02:23.6]} 14... a5 {[%clk 0:02:33.5]} 15. Bb5 {[%clk
0:02:19.9]} 15... O-O {[%clk 0:02:10]} 16. Bxc6 {[%clk 0:02:19.3]} 16... dxc6
{[%clk 0:02:10.9]} 17. Rd1 {[%clk 0:01:52.6]} 17... Bh2+ {[%clk 0:02:01.2]} 18.
Kh1 {[%clk 0:01:52.1]} 18... Be5 {[%clk 0:02:02.1]} 19. Qc4 {[%clk 0:01:43.8]}
19... Qb4 {[%clk 0:01:58.7]} 20. Ra4 {[%clk 0:01:35.8]} 20... Qb6 {[%clk
0:01:50.3]} 21. Kg1 {[%clk 0:01:17.9]} 21... Rad8 {[%clk 0:01:44]} 22. Rd3
{[%clk 0:01:16]} 22... Rxd3 {[%clk 0:01:37.3]} 23. cxd3 {[%clk 0:01:16]} 23...
Rd8 {[%clk 0:01:27.6]} 24. Ra3 {[%clk 0:01:05.9]} 24... Bd4 {[%clk 0:01:19.3]}
25. Rb3 {[%clk 0:00:52.3]} 25... Bxf2+ {[%clk 0:01:11]} 26. Kf1 {[%clk
0:00:52.5]} 26... Qa7 {[%clk 0:01:05.5]} 27. Qxc6 {[%clk 0:00:50.1]} 27... Bg3
{[%clk 0:00:49.6]} 28. Nd1 {[%clk 0:00:45.1]} 28... Ne5 {[%clk 0:00:47]} 29. Qb6
{[%clk 0:00:32.1]} 29... Qxb6 {[%clk 0:00:43.6]} 30. Rxb6 {[%clk 0:00:33]} 30...
h5 {[%clk 0:00:40.7]} 31. Rb5 {[%clk 0:00:13.3]} 31... Nxd3 {[%clk 0:00:36.9]}
32. Be3 {[%clk 0:00:13.4]} 32... Nf4 {[%clk 0:00:25]} 33. Nc3 {[%clk 0:00:13.1]}
33... Rd3 {[%clk 0:00:23.4]} 34. Bxf4 {[%clk 0:00:13.4]} 34... Bxf4 {[%clk
0:00:24]} 35. Rxa5 {[%clk 0:00:12.7]} 35... h4 {[%clk 0:00:23.9]} 36. Ra8+
{[%clk 0:00:10.8]} 36... Kh7 {[%clk 0:00:24]} 37. Ke2 {[%clk 0:00:09.9]} 37...
Rd2+ {[%clk 0:00:21.8]} 38. Kf3 {[%clk 0:00:10.3]} 38... Bg3 {[%clk 0:00:22.3]}
39. Ne2 {[%clk 0:00:09.6]} 39... Be5 {[%clk 0:00:22.5]} 40. Ra3 {[%clk
0:00:03.9]} 40... Rxb2 {[%clk 0:00:20.9]} 41. Rd3 {[%clk 0:00:04.2]} 41... Kh6
{[%clk 0:00:19.3]} 42. g3 {[%clk 0:00:04.6]} 42... hxg3 {[%clk 0:00:17.9]} 43.
Nxg3 {[%clk 0:00:05.5]} 43... Rh2 {[%clk 0:00:17.7]} 0-1